[Event "Titled Tuesday Blitz October 5 2021"]
[White "Vega Gutierrez, Sabrina"]
[Black "Silich, Yahor"]
[WhiteFideId "2219026"]
[BlackFideId "13513656"]
[WhiteElo "2286"]
[BlackElo "2070"]
[Result "0-1"]
[Round "06"]
[TimeControl "180+1"]
[Date "2021.10.05"]
[WhiteClock "0:00:03"]
[BlackClock "0:01:23"]

1. e4 {[%clk 0:02:53]}  c5 {[%clk 0:03:00]} 2. Nf3 {[%clk 0:02:52]}  Nc6 {[%clk 0:03:00]} 3. d4 {[%clk 0:02:52]}  cxd4 {[%clk 0:03:01]} 4. Nxd4 {[%clk 0:02:52]}  Qb6 {[%clk 0:03:02]} 5. Nb3 {[%clk 0:02:51]}  Nf6 {[%clk 0:03:01]} 6. Qe2 {[%clk 0:02:47]}  e6 {[%clk 0:02:55]} 7. Bd2 {[%clk 0:02:34]}  d5 {[%clk 0:02:54]} 8. exd5 {[%clk 0:02:14]}  Nxd5 {[%clk 0:02:55]} 9. c4 {[%clk 0:02:13]}  Nf6 {[%clk 0:02:44]} 10. Nc3 {[%clk 0:02:08]}  Be7 {[%clk 0:02:42]} 11. c5 {[%clk 0:01:36]}  Qc7 {[%clk 0:02:30]} 12. Nb5 {[%clk 0:01:35]}  Qb8 {[%clk 0:02:29]} 13. O-O-O {[%clk 0:01:23]}  O-O {[%clk 0:02:27]} 14. Bg5 {[%clk 0:01:13]}  b6 {[%clk 0:02:17]} 15. Nd6 {[%clk 0:00:55]}  bxc5 {[%clk 0:02:04]} 16. Nxc8 {[%clk 0:00:38]}  Rxc8 {[%clk 0:02:05]} 17. Kb1 {[%clk 0:00:36]}  Nd5 {[%clk 0:01:53]} 18. Bxe7 {[%clk 0:00:34]}  Ncxe7 {[%clk 0:01:53]} 19. Qc4 {[%clk 0:00:32]}  a5 {[%clk 0:01:44]} 20. Bd3 {[%clk 0:00:31]}  a4 {[%clk 0:01:42]} 21. Nd2 {[%clk 0:00:29]}  a3 {[%clk 0:01:40]} 22. b3 {[%clk 0:00:28]}  Qe5 {[%clk 0:01:36]} 23. Qc2 {[%clk 0:00:16]}  Nb4 {[%clk 0:01:35]} 24. Nf3 {[%clk 0:00:09]}  Qf6 {[%clk 0:01:32]} 25. Qc1 {[%clk 0:00:03]}  Ned5 {[%clk 0:01:23]} 0-1


[Site "https://www.chess.com"]

[Event "Titled Tuesday Blitz October 5 2021"]
[White "Vlachos, Anatole"]
[Black "Dang, Hoang Son"]
[WhiteFideId "26093189"]
[BlackFideId "12402435"]
[WhiteElo "2350"]
[BlackElo "2248"]
[Result "1-0"]
[Round "06"]
[TimeControl "180+1"]
[Date "2021.10.05"]
[WhiteClock "0:01:21"]
[BlackClock "0:00:07"]

1. Nf3 {[%clk 0:03:00]}  g6 {[%clk 0:02:59]} 2. g3 {[%clk 0:03:01]}  Bg7 {[%clk 0:03:00]} 3. Bg2 {[%clk 0:03:01]}  d6 {[%clk 0:03:00]} 4. O-O {[%clk 0:03:02]}  Nf6 {[%clk 0:03:01]} 5. c4 {[%clk 0:03:00]}  O-O {[%clk 0:03:02]} 6. Nc3 {[%clk 0:03:00]}  Nc6 {[%clk 0:03:02]} 7. Rb1 {[%clk 0:03:00]}  e5 {[%clk 0:03:01]} 8. d3 {[%clk 0:03:00]}  Re8 {[%clk 0:03:01]} 9. Qc2 {[%clk 0:02:56]}  a6 {[%clk 0:02:58]} 10. b4 {[%clk 0:02:57]}  Nd4 {[%clk 0:02:58]} 11. Nxd4 {[%clk 0:02:53]}  exd4 {[%clk 0:02:59]} 12. Nd5 {[%clk 0:02:45]}  c6 {[%clk 0:02:39]} 13. Nxf6+ {[%clk 0:02:41]}  Qxf6 {[%clk 0:02:36]} 14. e4 {[%clk 0:02:33]}  Be6 {[%clk 0:02:17]} 15. f4 {[%clk 0:02:31]}  Qe7 {[%clk 0:02:13]} 16. c5 {[%clk 0:02:24]}  dxc5 {[%clk 0:02:06]} 17. bxc5 {[%clk 0:02:23]}  f5 {[%clk 0:02:00]} 18. Bb2 {[%clk 0:02:18]}  fxe4 {[%clk 0:01:58]} 19. Bxe4 {[%clk 0:02:10]}  Bxa2 {[%clk 0:01:58]} 20. Rbe1 {[%clk 0:02:09]}  Qf7 {[%clk 0:01:30]} 21. f5 {[%clk 0:02:04]}  gxf5 {[%clk 0:01:19]} 22. Rxf5 {[%clk 0:02:04]}  Qxf5 {[%clk 0:01:13]} 23. Bxf5 {[%clk 0:02:01]}  Rxe1+ {[%clk 0:01:14]} 24. Kf2 {[%clk 0:01:58]}  Rae8 {[%clk 0:01:08]} 25. Be4 {[%clk 0:01:48]}  Rb1 {[%clk 0:00:45]} 26. Bc1 {[%clk 0:01:45]}  Rf8+ {[%clk 0:00:44]} 27. Kg2 {[%clk 0:01:43]}  Rxc1 {[%clk 0:00:41]} 28. Qxc1 {[%clk 0:01:41]}  Be6 {[%clk 0:00:39]} 29. Qb2 {[%clk 0:01:32]}  Rf7 {[%clk 0:00:38]} 30. Qb6 {[%clk 0:01:31]}  Bf6 {[%clk 0:00:31]} 31. h3 {[%clk 0:01:30]}  Kg7 {[%clk 0:00:31]} 32. Qa7 {[%clk 0:01:25]}  Bg5 {[%clk 0:00:19]} 33. Qb8 {[%clk 0:01:22]}  Be3 {[%clk 0:00:19]} 34. Qe5+ {[%clk 0:01:23]}  Rf6 {[%clk 0:00:19]} 35. g4 {[%clk 0:01:23]}  a5 {[%clk 0:00:08]} 36. g5 {[%clk 0:01:22]}  Bxg5 {[%clk 0:00:06]} 37. Qxg5+ {[%clk 0:01:23]}  Kf7 {[%clk 0:00:07]} 38. Qe5 {[%clk 0:01:22]}  a4 {[%clk 0:00:07]} 39. Qc7+ {[%clk 0:01:22]}  Kg8 {[%clk 0:00:06]} 40. Qxh7+ {[%clk 0:01:20]}  Kf8 {[%clk 0:00:07]} 41. Qxb7 {[%clk 0:01:21]}  a3 {[%clk 0:00:07]} 42. Qa8+ {[%clk 0:01:21]} 1-0


[Site "https://www.chess.com"]

[Event "Titled Tuesday Blitz October 5 2021"]
[White "Wagner, Dennis"]
[Black "Girinath, P.D.S."]
[WhiteFideId "24650684"]
[BlackFideId "5000572"]
[WhiteElo "2355"]
[BlackElo "2333"]
[Result "1-0"]
[Round "06"]
[TimeControl "180+1"]
[Date "2021.10.05"]
[WhiteClock "0:00:35"]
[BlackClock "0:00:01"]

1. d4 {[%clk 0:03:00]}  Nf6 {[%clk 0:02:55]} 2. c4 {[%clk 0:03:00]}  g6 {[%clk 0:02:55]} 3. h4 {[%clk 0:02:57]}  d6 {[%clk 0:02:48]} 4. Nc3 {[%clk 0:02:56]}  h6 {[%clk 0:02:40]} 5. e4 {[%clk 0:02:54]}  c6 {[%clk 0:02:35]} 6. Be2 {[%clk 0:02:54]}  e5 {[%clk 0:02:30]} 7. Be3 {[%clk 0:02:48]}  Bg7 {[%clk 0:02:10]} 8. d5 {[%clk 0:02:38]}  c5 {[%clk 0:01:57]} 9. Qd2 {[%clk 0:02:16]}  Nbd7 {[%clk 0:01:38]} 10. Nh3 {[%clk 0:02:12]}  Nf8 {[%clk 0:01:31]} 11. f3 {[%clk 0:02:09]}  Bxh3 {[%clk 0:01:23]} 12. Rxh3 {[%clk 0:02:08]}  Nh5 {[%clk 0:01:23]} 13. Kf2 {[%clk 0:01:52]}  Nd7 {[%clk 0:01:11]} 14. g3 {[%clk 0:01:49]}  a6 {[%clk 0:01:10]} 15. f4 {[%clk 0:01:41]}  exf4 {[%clk 0:00:54]} 16. gxf4 {[%clk 0:01:41]}  Nhf6 {[%clk 0:00:54]} 17. h5 {[%clk 0:01:34]}  Qe7 {[%clk 0:00:47]} 18. hxg6 {[%clk 0:01:22]}  fxg6 {[%clk 0:00:48]} 19. Rg1 {[%clk 0:01:19]}  O-O-O {[%clk 0:00:40]} 20. Rxg6 {[%clk 0:01:19]}  Rhf8 {[%clk 0:00:30]} 21. Bf3 {[%clk 0:01:17]}  Qf7 {[%clk 0:00:22]} 22. Rhg3 {[%clk 0:01:15]}  Bh8 {[%clk 0:00:22]} 23. Rxh6 {[%clk 0:01:11]}  Rde8 {[%clk 0:00:21]} 24. Qd1 {[%clk 0:01:05]}  Rg8 {[%clk 0:00:17]} 25. Rxg8 {[%clk 0:01:01]}  Rxg8 {[%clk 0:00:18]} 26. Qh1 {[%clk 0:01:01]}  Qg7 {[%clk 0:00:15]} 27. Rh3 {[%clk 0:00:57]}  Qf8 {[%clk 0:00:12]} 28. Ne2 {[%clk 0:00:48]}  Kc7 {[%clk 0:00:10]} 29. b3 {[%clk 0:00:47]}  Bg7 {[%clk 0:00:10]} 30. Rg3 {[%clk 0:00:46]}  Bh8 {[%clk 0:00:07]} 31. Rxg8 {[%clk 0:00:45]}  Qxg8 {[%clk 0:00:08]} 32. Qh3 {[%clk 0:00:43]}  b5 {[%clk 0:00:05]} 33. Ng3 {[%clk 0:00:40]}  bxc4 {[%clk 0:00:04]} 34. bxc4 {[%clk 0:00:40]}  Qb8 {[%clk 0:00:04]} 35. Be2 {[%clk 0:00:37]}  Bg7 {[%clk 0:00:03]} 36. Qe6 {[%clk 0:00:35]}  Qb2 {[%clk 0:00:01]} 37. Nf5 {[%clk 0:00:35]}  Bh8 {[%clk 0:00:01]} 38. e5 {[%clk 0:00:35]} 1-0


[Site "https://www.chess.com"]

[Event "Titled Tuesday Blitz October 5 2021"]
[White "Weetik, Vjacheslav"]
[Black "Nilsen, Tobias Lang"]
[WhiteFideId "4153472"]
[BlackFideId "1521624"]
[WhiteElo "2469"]
[BlackElo "1975"]
[Result "0-1"]
[Round "06"]
[TimeControl "180+1"]
[Date "2021.10.05"]
[WhiteClock "0:00:04"]
[BlackClock "0:00:49"]

1. e4 {[%clk 0:01:35]}  e6 {[%clk 0:02:58]} 2. d4 {[%clk 0:01:34]}  d5 {[%clk 0:02:59]} 3. Nc3 {[%clk 0:01:34]}  Bb4 {[%clk 0:02:59]} 4. exd5 {[%clk 0:01:32]}  exd5 {[%clk 0:03:00]} 5. Bd3 {[%clk 0:01:32]}  Ne7 {[%clk 0:02:59]} 6. Qh5 {[%clk 0:01:29]}  Nbc6 {[%clk 0:02:57]} 7. a3 {[%clk 0:01:27]}  Ba5 {[%clk 0:02:55]} 8. Nf3 {[%clk 0:01:22]}  Be6 {[%clk 0:02:45]} 9. O-O {[%clk 0:01:10]}  Qd7 {[%clk 0:02:38]} 10. h3 {[%clk 0:00:40]}  O-O-O {[%clk 0:02:33]} 11. Na4 {[%clk 0:00:35]}  Bb6 {[%clk 0:02:32]} 12. Nxb6+ {[%clk 0:00:32]}  axb6 {[%clk 0:02:33]} 13. Bd2 {[%clk 0:00:25]}  g6 {[%clk 0:02:33]} 14. Qh6 {[%clk 0:00:18]}  Bf5 {[%clk 0:02:32]} 15. Bb5 {[%clk 0:00:17]}  Be4 {[%clk 0:02:28]} 16. Qf4 {[%clk 0:00:12]}  f6 {[%clk 0:02:26]} 17. Rfe1 {[%clk 0:00:09]}  Rdf8 {[%clk 0:02:21]} 18. a4 {[%clk 0:00:07]}  g5 {[%clk 0:02:20]} 19. Qe3 {[%clk 0:00:05]}  h5 {[%clk 0:02:18]} 20. a5 {[%clk 0:00:05]}  bxa5 {[%clk 0:02:17]} 21. Rxa5 {[%clk 0:00:04]}  Qd6 {[%clk 0:02:16]} 22. Ra8+ {[%clk 0:00:04]}  Nb8 {[%clk 0:02:16]} 23. Nh2 {[%clk 0:00:02]}  Nf5 {[%clk 0:02:16]} 24. Qa3 {[%clk 0:00:02]}  Qxa3 {[%clk 0:02:07]} 25. bxa3 {[%clk 0:00:03]}  Nd6 {[%clk 0:02:08]} 26. Bf1 {[%clk 0:00:02]}  Nf5 {[%clk 0:01:54]} 27. c3 {[%clk 0:00:02]}  Nd6 {[%clk 0:01:49]} 28. Nf3 {[%clk 0:00:02]}  Bxf3 {[%clk 0:01:48]} 29. gxf3 {[%clk 0:00:03]}  Kd7 {[%clk 0:01:43]} 30. Bd3 {[%clk 0:00:02]}  Nc6 {[%clk 0:01:42]} 31. Rxf8 {[%clk 0:00:02]}  Rxf8 {[%clk 0:01:43]} 32. Kg2 {[%clk 0:00:02]}  Ra8 {[%clk 0:01:43]} 33. h4 {[%clk 0:00:02]}  gxh4 {[%clk 0:01:40]} 34. Rh1 {[%clk 0:00:02]}  Rxa3 {[%clk 0:01:38]} 35. Rxh4 {[%clk 0:00:03]}  Nb4 {[%clk 0:01:32]} 36. Bg6 {[%clk 0:00:02]}  Na2 {[%clk 0:01:31]} 37. Rxh5 {[%clk 0:00:02]}  c6 {[%clk 0:01:27]} 38. Rh7+ {[%clk 0:00:02]}  Ke6 {[%clk 0:01:27]} 39. Bf4 {[%clk 0:00:03]}  Rb3 {[%clk 0:01:22]} 40. Bxd6 {[%clk 0:00:02]}  Kxd6 {[%clk 0:01:23]} 41. Rf7 {[%clk 0:00:02]}  Ke6 {[%clk 0:01:23]} 42. Rc7 {[%clk 0:00:02]}  Nxc3 {[%clk 0:01:21]} 43. f4 {[%clk 0:00:02]}  Ne4 {[%clk 0:01:17]} 44. f5+ {[%clk 0:00:02]}  Kd6 {[%clk 0:01:16]} 45. Rf7 {[%clk 0:00:02]}  Rb2 {[%clk 0:01:16]} 46. Kf3 {[%clk 0:00:02]}  Rxf2+ {[%clk 0:01:14]} 47. Ke3 {[%clk 0:00:03]}  Rb2 {[%clk 0:01:15]} 48. Rf8 {[%clk 0:00:03]}  b5 {[%clk 0:01:14]} 49. Re8 {[%clk 0:00:03]}  b4 {[%clk 0:01:13]} 50. Re6+ {[%clk 0:00:03]}  Kd7 {[%clk 0:01:12]} 51. Be8+ {[%clk 0:00:04]}  Kc7 {[%clk 0:01:09]} 52. Bxc6 {[%clk 0:00:05]}  Rb3+ {[%clk 0:01:06]} 53. Kf4 {[%clk 0:00:05]}  Nc3 {[%clk 0:01:00]} 54. Rxf6 {[%clk 0:00:06]}  Rb1 {[%clk 0:01:00]} 55. Be8 {[%clk 0:00:05]}  b3 {[%clk 0:00:59]} 56. Rc6+ {[%clk 0:00:05]}  Kd8 {[%clk 0:00:56]} 57. Rxc3 {[%clk 0:00:06]}  Kxe8 {[%clk 0:00:57]} 58. Ke5 {[%clk 0:00:05]}  b2 {[%clk 0:00:52]} 59. Kxd5 {[%clk 0:00:06]}  Rf1 {[%clk 0:00:51]} 60. Rc8+ {[%clk 0:00:04]}  Kd7 {[%clk 0:00:49]} 0-1


[Site "https://www.chess.com"]

[Event "Titled Tuesday Blitz October 5 2021"]
[White "Yakubboev, Nodirbek"]
[Black "Maly, Alexey"]
[WhiteFideId "14203987"]
[BlackFideId "14103184"]
[WhiteElo "2464"]
[BlackElo "2294"]
[Result "1-0"]
[Round "06"]
[TimeControl "180+1"]
[Date "2021.10.05"]
[WhiteClock "0:00:06"]
[BlackClock "0:00:41"]

1. d4 {[%clk 0:02:58]}  d5 {[%clk 0:02:57]} 2. c4 {[%clk 0:02:58]}  dxc4 {[%clk 0:02:58]} 3. e4 {[%clk 0:02:58]}  Nf6 {[%clk 0:02:58]} 4. e5 {[%clk 0:02:57]}  Nd5 {[%clk 0:02:58]} 5. Bxc4 {[%clk 0:02:57]}  Nb6 {[%clk 0:02:58]} 6. Bd3 {[%clk 0:02:57]}  Nc6 {[%clk 0:02:59]} 7. Ne2 {[%clk 0:02:58]}  Bg4 {[%clk 0:02:59]} 8. f3 {[%clk 0:02:55]}  Bh5 {[%clk 0:02:59]} 9. Nbc3 {[%clk 0:02:53]}  e6 {[%clk 0:02:59]} 10. Be3 {[%clk 0:02:50]}  Be7 {[%clk 0:02:55]} 11. O-O {[%clk 0:02:44]}  Nb4 {[%clk 0:02:54]} 12. Be4 {[%clk 0:02:42]}  N4d5 {[%clk 0:02:55]} 13. Bf2 {[%clk 0:02:41]}  O-O {[%clk 0:02:53]} 14. Rc1 {[%clk 0:02:34]}  c6 {[%clk 0:02:53]} 15. Ng3 {[%clk 0:02:26]}  Bg6 {[%clk 0:02:53]} 16. Bxg6 {[%clk 0:02:26]}  hxg6 {[%clk 0:02:52]} 17. Nge4 {[%clk 0:02:26]}  Qd7 {[%clk 0:02:46]} 18. g3 {[%clk 0:02:23]}  Rad8 {[%clk 0:02:45]} 19. Qe2 {[%clk 0:02:22]}  Qc7 {[%clk 0:02:39]} 20. h4 {[%clk 0:01:57]}  Qb8 {[%clk 0:02:36]} 21. Kg2 {[%clk 0:01:46]}  f5 {[%clk 0:02:25]} 22. exf6 {[%clk 0:01:42]}  gxf6 {[%clk 0:02:25]} 23. Rh1 {[%clk 0:01:18]}  Kf7 {[%clk 0:02:23]} 24. h5 {[%clk 0:01:15]}  gxh5 {[%clk 0:02:23]} 25. Rxh5 {[%clk 0:00:54]}  Rh8 {[%clk 0:02:19]} 26. Rch1 {[%clk 0:00:44]}  Rxh5 {[%clk 0:02:19]} 27. Rxh5 {[%clk 0:00:45]}  Rh8 {[%clk 0:02:19]} 28. f4 {[%clk 0:00:42]}  Qg8 {[%clk 0:02:19]} 29. Kf1 {[%clk 0:00:30]}  Rh7 {[%clk 0:02:01]} 30. f5 {[%clk 0:00:11]}  exf5 {[%clk 0:01:50]} 31. Rxf5 {[%clk 0:00:12]}  Rh1+ {[%clk 0:01:37]} 32. Kg2 {[%clk 0:00:12]}  Qh8 {[%clk 0:01:33]} 33. Ng5+ {[%clk 0:00:10]}  Kg6 {[%clk 0:01:28]} 34. Qe6 {[%clk 0:00:09]}  Qh2+ {[%clk 0:00:51]} 35. Kf3 {[%clk 0:00:09]}  Rf1 {[%clk 0:00:50]} 36. Qf7+ {[%clk 0:00:05]}  Kxf5 {[%clk 0:00:50]} 37. g4+ {[%clk 0:00:06]}  Kxg5 {[%clk 0:00:41]} 38. Qg7# {[%clk 0:00:06]} 1-0


[Site "https://www.chess.com"]

[Event "Titled Tuesday Blitz October 5 2021"]
[White "Abdusattorov, Nodirbek"]
[Black "Goltsev, Dmitry"]
[WhiteFideId "14204118"]
[BlackFideId "24176710"]
[WhiteElo "2690"]
[BlackElo "2334"]
[Result "1-0"]
[Round "07"]
[TimeControl "180+1"]
[Date "2021.10.05"]
[WhiteClock "0:02:04"]
[BlackClock "0:01:12"]

1. d4 {[%clk 0:03:00]}  Nf6 {[%clk 0:03:00]} 2. c4 {[%clk 0:03:01]}  e6 {[%clk 0:03:00]} 3. Nc3 {[%clk 0:03:01]}  Bb4 {[%clk 0:03:00]} 4. Qc2 {[%clk 0:02:59]}  Qe7 {[%clk 0:03:01]} 5. e4 {[%clk 0:02:58]}  b6 {[%clk 0:02:57]} 6. e5 {[%clk 0:02:56]}  Ng8 {[%clk 0:02:57]} 7. Ne2 {[%clk 0:02:54]}  Bb7 {[%clk 0:02:57]} 8. a3 {[%clk 0:02:54]}  Bxc3+ {[%clk 0:02:56]} 9. Nxc3 {[%clk 0:02:55]}  d6 {[%clk 0:02:56]} 10. exd6 {[%clk 0:02:54]}  cxd6 {[%clk 0:02:57]} 11. Be2 {[%clk 0:02:51]}  Nf6 {[%clk 0:02:56]} 12. O-O {[%clk 0:02:51]}  O-O {[%clk 0:02:57]} 13. Bg5 {[%clk 0:02:49]}  h6 {[%clk 0:02:56]} 14. Bh4 {[%clk 0:02:49]}  Nc6 {[%clk 0:02:56]} 15. Qd2 {[%clk 0:02:48]}  Rac8 {[%clk 0:02:54]} 16. Rfe1 {[%clk 0:02:48]}  Rfe8 {[%clk 0:02:49]} 17. Bf3 {[%clk 0:02:48]}  Na5 {[%clk 0:02:48]} 18. Bxb7 {[%clk 0:02:47]}  Qxb7 {[%clk 0:02:48]} 19. Bxf6 {[%clk 0:02:47]}  Nb3 {[%clk 0:02:41]} 20. Qd1 {[%clk 0:02:45]}  Nxa1 {[%clk 0:02:38]} 21. Qg4 {[%clk 0:02:45]}  g6 {[%clk 0:02:36]} 22. Qh4 {[%clk 0:02:41]}  Kh7 {[%clk 0:02:29]} 23. Ne4 {[%clk 0:02:40]}  h5 {[%clk 0:02:24]} 24. g4 {[%clk 0:02:33]}  Nc2 {[%clk 0:02:09]} 25. gxh5 {[%clk 0:02:32]}  Rg8 {[%clk 0:02:09]} 26. hxg6+ {[%clk 0:02:06]}  Kxg6 {[%clk 0:02:10]} 27. Kf1 {[%clk 0:02:06]}  Kf5 {[%clk 0:01:12]} 28. Nxd6+ {[%clk 0:02:04]} 1-0


[Site "https://www.chess.com"]

[Event "Titled Tuesday Blitz October 5 2021"]
[White "Akshat, Khamparia"]
[Black "Aloma Vidal, Robert"]
[WhiteFideId "5016541"]
[BlackFideId "2260409"]
[WhiteElo "2237"]
[BlackElo "2435"]
[Result "0-1"]
[Round "07"]
[TimeControl "180+1"]
[Date "2021.10.05"]
[WhiteClock "0:00:33"]
[BlackClock "0:00:08"]

1. d4 {[%clk 0:03:00]}  d5 {[%clk 0:02:58]} 2. c4 {[%clk 0:03:00]}  c6 {[%clk 0:02:55]} 3. Nf3 {[%clk 0:02:59]}  Nf6 {[%clk 0:02:55]} 4. Nc3 {[%clk 0:02:59]}  e6 {[%clk 0:02:54]} 5. Bg5 {[%clk 0:02:57]}  Nbd7 {[%clk 0:02:52]} 6. e3 {[%clk 0:02:56]}  h6 {[%clk 0:02:52]} 7. Bh4 {[%clk 0:02:56]}  g5 {[%clk 0:02:52]} 8. Bg3 {[%clk 0:02:55]}  Nh5 {[%clk 0:02:53]} 9. Qc2 {[%clk 0:02:53]}  Nxg3 {[%clk 0:02:52]} 10. hxg3 {[%clk 0:02:53]}  Bg7 {[%clk 0:02:52]} 11. e4 {[%clk 0:02:35]}  Nb6 {[%clk 0:02:18]} 12. c5 {[%clk 0:02:29]}  Nd7 {[%clk 0:02:17]} 13. O-O-O {[%clk 0:02:25]}  b6 {[%clk 0:02:15]} 14. exd5 {[%clk 0:02:23]}  exd5 {[%clk 0:01:56]} 15. Re1+ {[%clk 0:02:21]}  Kf8 {[%clk 0:01:57]} 16. cxb6 {[%clk 0:02:17]}  axb6 {[%clk 0:01:57]} 17. Bd3 {[%clk 0:02:08]}  Bb7 {[%clk 0:01:37]} 18. Rh5 {[%clk 0:01:52]}  c5 {[%clk 0:01:34]} 19. Kb1 {[%clk 0:01:31]}  c4 {[%clk 0:00:52]} 20. Bf5 {[%clk 0:01:27]}  Nf6 {[%clk 0:00:52]} 21. Rh2 {[%clk 0:01:25]}  b5 {[%clk 0:00:49]} 22. Reh1 {[%clk 0:01:22]}  b4 {[%clk 0:00:47]} 23. Na4 {[%clk 0:01:22]}  Ne4 {[%clk 0:00:38]} 24. Ne5 {[%clk 0:01:09]}  b3 {[%clk 0:00:25]} 25. axb3 {[%clk 0:01:07]}  cxb3 {[%clk 0:00:25]} 26. Qxb3 {[%clk 0:01:07]}  Nd2+ {[%clk 0:00:24]} 27. Ka2 {[%clk 0:00:55]}  Nxb3 {[%clk 0:00:23]} 28. Kxb3 {[%clk 0:00:55]}  Qa5 {[%clk 0:00:16]} 29. Nd7+ {[%clk 0:00:55]}  Kg8 {[%clk 0:00:16]} 30. Ra1 {[%clk 0:00:53]}  Bc6 {[%clk 0:00:15]} 31. Ndc5 {[%clk 0:00:49]}  Bxa4+ {[%clk 0:00:14]} 32. Rxa4 {[%clk 0:00:48]}  Qb5+ {[%clk 0:00:15]} 33. Rb4 {[%clk 0:00:49]}  Qe2 {[%clk 0:00:14]} 34. Rh1 {[%clk 0:00:44]}  Bxd4 {[%clk 0:00:14]} 35. Nd7 {[%clk 0:00:42]}  Bg7 {[%clk 0:00:11]} 36. Rc1 {[%clk 0:00:41]}  Qxf2 {[%clk 0:00:11]} 37. Ra4 {[%clk 0:00:39]}  Rd8 {[%clk 0:00:08]} 38. Ra7 {[%clk 0:00:33]}  Qxa7 {[%clk 0:00:08]} 0-1


[Site "https://www.chess.com"]

[Event "Titled Tuesday Blitz October 5 2021"]
[White "Aldokhin, Ivan"]
[Black "Majdan, Joanna"]
[WhiteFideId "24115720"]
[BlackFideId "1121979"]
[WhiteElo "2231"]
[BlackElo "2270"]
[Result "1-0"]
[Round "07"]
[TimeControl "180+1"]
[Date "2021.10.05"]
[WhiteClock "0:00:10"]
[BlackClock "0:00:40"]

1. e4 {[%clk 0:03:00]}  c5 {[%clk 0:02:58]} 2. Nf3 {[%clk 0:02:59]}  e6 {[%clk 0:02:59]} 3. d4 {[%clk 0:03:00]}  cxd4 {[%clk 0:02:58]} 4. Nxd4 {[%clk 0:03:01]}  a6 {[%clk 0:02:59]} 5. Nc3 {[%clk 0:03:01]}  Qc7 {[%clk 0:02:59]} 6. Bd3 {[%clk 0:03:01]}  Nf6 {[%clk 0:02:58]} 7. Qe2 {[%clk 0:03:01]}  Nc6 {[%clk 0:02:50]} 8. Nxc6 {[%clk 0:02:47]}  bxc6 {[%clk 0:02:50]} 9. O-O {[%clk 0:02:47]}  d6 {[%clk 0:02:48]} 10. f4 {[%clk 0:02:41]}  e5 {[%clk 0:02:48]} 11. fxe5 {[%clk 0:02:34]}  dxe5 {[%clk 0:02:49]} 12. Kh1 {[%clk 0:02:33]}  Be7 {[%clk 0:02:44]} 13. Be3 {[%clk 0:02:05]}  Be6 {[%clk 0:02:42]} 14. Bxa6 {[%clk 0:02:03]}  Bg4 {[%clk 0:02:28]} 15. Qc4 {[%clk 0:01:52]}  Be6 {[%clk 0:02:19]} 16. Qd3 {[%clk 0:01:43]}  O-O {[%clk 0:01:51]} 17. Bc4 {[%clk 0:01:41]}  Bxc4 {[%clk 0:01:26]} 18. Qxc4 {[%clk 0:01:40]}  Ng4 {[%clk 0:01:27]} 19. Bg1 {[%clk 0:01:32]}  Rab8 {[%clk 0:01:23]} 20. Nd5 {[%clk 0:01:27]}  Qd6 {[%clk 0:01:23]} 21. Nxe7+ {[%clk 0:01:26]}  Qxe7 {[%clk 0:01:24]} 22. h3 {[%clk 0:00:53]}  Qh4 {[%clk 0:01:23]} 23. a4 {[%clk 0:00:38]}  Rxb2 {[%clk 0:01:22]} 24. a5 {[%clk 0:00:37]}  Nf6 {[%clk 0:01:20]} 25. Rxf6 {[%clk 0:00:26]}  Qxf6 {[%clk 0:01:14]} 26. a6 {[%clk 0:00:26]}  Ra8 {[%clk 0:00:58]} 27. a7 {[%clk 0:00:25]}  Qd6 {[%clk 0:00:54]} 28. Ra6 {[%clk 0:00:14]}  Rb1 {[%clk 0:00:50]} 29. Rxc6 {[%clk 0:00:14]}  Qd7 {[%clk 0:00:46]} 30. Rc7 {[%clk 0:00:10]}  Qd8 {[%clk 0:00:42]} 31. Qxf7+ {[%clk 0:00:09]}  Kh8 {[%clk 0:00:40]} 32. Qxg7# {[%clk 0:00:10]} 1-0


[Site "https://www.chess.com"]